bitfinex-derivatives/quotes_SOLF0:USTF0_20250426
["timestamp","ask_amount","ask_price","bid_price","bid_amount"]
[1745668595927,8.28886422,148.66,148.56,8.28886422]
[1745668596124,8.28886422,148.66,148.59,27.52]
[1745668596527,8.28886422,148.64,148.59,27.52]
[1745668597631,13.18229458,148.66,148.59,27.52]
[1745668597927,6.726,148.62,148.59,27.52]
[1745668599129,6.7262,148.61,148.59,27.52]
[1745668599325,13.18229458,148.66,148.59,27.52]
[1745668600529,13.18229458,148.66,148.56,34.2282]
[1745668600732,27.52,148.67,148.56,34.2282]
[1745668600921,13.18229458,148.66,148.57,6.7279]
[1745668602034,6.726,148.62,148.57,6.7279]
[1745668602433,13.18229458,148.66,148.57,6.7279]
[1745668603230,13.18229458,148.66,148.56,27.5]
[1745668603231,6.7262,148.61,148.56,34.2283]
[1745668603731,6.7267,148.6,148.56,34.2283]
[1745668603928,13.18229458,148.66,148.56,27.5]
[1745668604135,13.18229458,148.63,148.55,27.5]
[1745668604325,6.7274,148.59,148.55,27.5]
[1745668604834,6.7276,148.58,148.55,27.5]
[1745668605834,6.7272,148.59,148.55,27.5]
[1745668609139,6.7272,148.59,148.55,34.2289]
[1745668609339,6.7272,148.59,148.55,27.5]
[1745668610542,6.7276,148.58,148.55,27.5]
[1745668611643,6.1783,148.62,148.55,27.5]
[1745668612146,6.7282,148.57,148.55,27.5]
[1745668612644,6.1783,148.62,148.55,27.5]
[1745668613544,6.7279,148.58,148.55,27.5]
[1745668613845,6.1783,148.62,148.55,27.5]
[1745668614246,6.7282,148.57,148.55,27.5]
[1745668614446,6.1783,148.62,148.55,27.5]
[1745668614746,6.7282,148.57,148.55,27.5]
[1745668614946,6.1783,148.62,148.55,27.5]
[1745668615541,6.7282,148.57,148.55,27.5]
[1745668615947,6.1783,148.62,148.55,27.5]
[1745668618052,6.7282,148.57,148.55,27.5]
[1745668618352,6.1783,148.62,148.55,27.5]
[1745668618852,19.36059458,148.62,148.55,27.5]
[1745668619749,8.24362721,148.6,148.55,27.5]
[1745668621354,6.7284,148.56,148.55,27.5]
[1745668621554,8.24362721,148.6,148.55,27.5]
[1745668623254,6.7284,148.56,148.55,27.5]
[1745668626457,6.7294,148.54,148.52,26.84]
[1745668626852,8.24362721,148.58,148.52,26.84]
[1745668627059,6.7298,148.53,148.52,26.84]
[1745668627258,8.24362721,148.56,148.49,26.84]
[1745668627757,8.24362721,148.56,148.46,8.24362721]
[1745668627758,8.24362721,148.54,148.46,35.08362721]
[1745668628152,10.32522721,148.54,148.46,26.84]
[1745668628359,8.24362721,148.52,148.45,26.84]
[1745668629260,10.32522721,148.54,148.46,8.24362721]
[1745668629761,10.32522721,148.54,148.45,26.84]
[1745668629762,6.7299,148.53,148.48,8.24362721]
[1745668629954,30.8278,148.55,148.48,8.24362721]
[1745668630156,30.8278,148.55,148.49,26.86]
[1745668630658,1.9217,148.55,148.49,26.86]
[1745668631257,8.6508,148.55,148.5,6.731]
[1745668631458,1.9217,148.55,148.5,6.731]
[1745668631761,6.7298,148.53,148.49,33.5914]
[1745668632064,1.9217,148.55,148.49,26.86]
[1745668632665,6.73,148.53,148.49,33.5915]
[1745668633163,6.73,148.53,148.49,26.86]
[1745668633564,6.7303,148.52,148.49,26.86]
[1745668635466,1.9217,148.55,148.49,26.86]
[1745668636665,16.3017,148.55,148.49,26.86]
[1745668637267,6.7307,148.51,148.49,26.86]
[1745668637565,16.3017,148.55,148.49,26.86]
[1745668638068,6.7305,148.52,148.49,26.86]
[1745668640765,6.7307,148.51,148.49,26.86]
[1745668641070,16.3017,148.55,148.49,26.86]
[1745668641367,6.7307,148.51,148.49,26.86]
[1745668641670,16.3017,148.55,148.48,5.27932042]
[1745668641969,6.7311,148.51,148.48,5.27932042]
[1745668642374,5.27932042,148.51,148.47,5.27932042]
[1745668642761,5.27932042,148.51,148.46,32.13932042]
[1745668642961,6.7318,148.49,148.46,32.13932042]
[1745668643162,5.27932042,148.48,148.46,26.86]
[1745668643371,5.27932042,148.48,148.44,5.27932042]
[1745668643572,1.9053,148.53,148.43,516.63932042]
[1745668643876,5.27932042,148.47,148.43,32.13932042]
[1745668644266,5.27932042,148.48,148.43,32.13932042]
[1745668644466,5.27932042,148.48,148.44,5.27932042]
[1745668644867,6.7328,148.47,148.44,5.27932042]
[1745668645772,12.01152042,148.48,148.44,5.27932042]
[1745668645972,6.7322,148.48,148.44,5.27932042]
[1745668646172,6.7317,148.49,148.45,12.01272042]
[1745668646476,6.7317,148.49,148.46,5.27932042]
[1745668648272,6.7311,148.5,148.47,5.27932042]
[1745668648463,5.27932042,148.51,148.47,5.27932042]
[1745668648664,32.13932042,148.54,148.49,5.27932042]
[1745668648865,32.13932042,148.54,148.5,5.27932042]
[1745668649065,6.7299,148.53,148.5,5.27932042]
[1745668649371,26.86,148.54,148.51,5.27932042]
[1745668649573,14.38,148.55,148.52,5.27932042]
[1745668649774,6.7294,148.54,148.49,14.97753825]
[1745668650573,6.7298,148.53,148.49,8.24613825]
[1745668650874,14.38,148.55,148.49,8.24613825]
[1745668651475,6.7308,148.51,148.48,2.0464]
[1745668651670,14.38,148.55,148.47,35.10613825]
[1745668651972,10.28233825,148.54,148.47,35.10613825]
[1745668652375,6.731,148.51,148.47,35.10613825]
[1745668652766,2.0362,148.54,148.47,35.10613825]
[1745668653676,6.7305,148.52,148.48,6.7319]
[1745668654476,6.7308,148.51,148.47,41.83863825]
[1745668655784,6.7303,148.52,148.48,6.732]
[1745668656086,6.7303,148.52,148.47,35.10613825]
[1745668656385,6.7303,148.52,148.48,6.7317]
[1745668657093,6.7308,148.51,148.48,6.7317]
[1745668657389,8.24613825,148.54,148.47,26.86]
[1745668657888,14.38,148.55,148.47,35.10613825]
[1745668658090,18.25,148.53,148.47,35.10613825]
[1745668658289,6.7307,148.51,148.47,35.10613825]
[1745668658490,18.25,148.53,148.47,35.10613825]
[1745668658788,18.25,148.53,148.49,8.24613825]
[1745668658986,18.25,148.53,148.5,6.7311]
[1745668659290,18.25,148.53,148.51,8.24613825]
[1745668659590,18.25,148.53,148.51,34.42613825]
[1745668661393,18.25,148.53,148.51,26.18]
[1745668664894,24.9798,148.53,148.51,26.18]
[1745668665296,18.25,148.53,148.48,26.18]
[1745668665597,6.731,148.51,148.48,26.18]
[1745668665896,18.25,148.53,148.48,26.18]
[1745668667000,18.25,148.53,148.48,32.9119]
[1745668667001,6.7304,148.52,148.48,32.9119]
[1745668667501,6.7308,148.51,148.48,26.18]
[1745668667699,18.25,148.53,148.48,26.18]
[1745668668002,6.731,148.51,148.48,26.18]
[1745668668198,18.25,148.53,148.48,26.18]
[1745668669393,6.7308,148.51,148.48,26.18]
[1745668671699,6.7308,148.51,148.48,31.45990728]
[1745668672803,6.7308,148.51,148.49,5.27990728]
[1745668673605,28.7987,148.57,148.5,5.27990728]
[1745668673798,5.27990728,148.55,148.5,5.27990728]
[1745668674003,5.27990728,148.54,148.49,5.27990728]
[1745668674202,5.27990728,148.53,148.49,5.27990728]
[1745668674604,6.7309,148.51,148.49,5.27990728]
[1745668674803,6.7309,148.51,148.48,26.18]
[1745668675005,6.7309,148.51,148.49,5.27990728]
[1745668676906,6.7304,148.52,148.5,5.27990728]
[1745668677108,34.07860728,148.57,148.51,5.27990728]
[1745668677308,34.07860728,148.57,148.52,5.27990728]
[1745668677510,5.27990728,148.56,148.52,5.27990728]
[1745668677806,6.729,148.55,148.52,5.27990728]
[1745668679005,6.7293,148.54,148.51,5.27990728]
[1745668680708,5.27990728,148.56,148.51,5.27990728]
[1745668681209,6.7294,148.54,148.51,5.27990728]
[1745668681410,5.27990728,148.56,148.51,5.27990728]
[1745668682604,5.27990728,148.55,148.51,5.27990728]
[1745668682806,6.7296,148.54,148.51,5.27990728]
[1745668683206,5.27990728,148.56,148.51,5.27990728]
[1745668683403,5.27990728,148.55,148.51,5.27990728]
[1745668684010,6.7297,148.54,148.51,5.27990728]
[1745668686807,6.7297,148.54,148.52,5.27990728]
[1745668688010,6.7297,148.54,148.51,5.27990728]
[1745668689916,6.7297,148.54,148.52,5.27990728]
[1745668690709,26.22,148.64,148.53,31.49990728]
[1745668691015,5.27990728,148.57,148.53,26.22]
[1745668691318,12.00860728,148.56,148.53,26.22]
[1745668692816,6.7291,148.55,148.53,26.22]
[1745668693216,1.9137,148.57,148.53,31.49990728]
[1745668693517,17.68,148.56,148.53,31.49990728]
[1745668693822,24.4087,148.56,148.53,31.49990728]
[1745668694621,17.68,148.56,148.54,5.27990728]
[1745668695717,17.68,148.56,148.55,5.27990728]
[1745668696122,17.68,148.56,148.55,12.00880728]
[1745668702528,17.68,148.56,148.55,5.27990728]
[1745668705027,24.4084,148.56,148.55,5.27990728]
[1745668705526,6.7289,148.55,148.53,31.49990728]
[1745668705826,17.68,148.56,148.53,31.49990728]
[1745668706122,6.7293,148.54,148.53,26.22]
[1745668706326,6.7293,148.54,148.51,5.27990728]
[1745668706722,6.7298,148.53,148.51,5.27990728]
[1745668707127,1.9687,148.55,148.52,5.27990728]
[1745668707324,1.9687,148.55,148.53,5.27990728]
[1745668707526,6.7295,148.54,148.53,5.27990728]
[1745668709432,5.27990728,148.54,148.5,5.27990728]
[1745668709633,5.27990728,148.53,148.49,5.27990728]
[1745668709834,5.27990728,148.52,148.48,31.49990728]
[1745668710134,6.7308,148.51,148.48,31.49990728]
[1745668710633,5.27990728,148.53,148.48,31.49990728]
[1745668710838,6.7314,148.5,148.48,31.49990728]
[1745668711541,6.7309,148.51,148.49,5.27990728]
[1745668712040,6.7311,148.5,148.49,5.27990728]
[1745668715444,6.7311,148.5,148.48,5.27990728]
[1745668718741,5.27990728,148.49,148.47,26.22]
[1745668719143,5.27990728,148.49,148.45,5.27990728]
[1745668719447,5.27990728,148.48,148.44,26.08]
[1745668719843,6.7338,148.45,148.42,5.27990728]
[1745668720039,6.7338,148.45,148.42,31.35990728]
[1745668720241,5.27990728,148.46,148.42,31.35990728]
[1745668720447,6.7337,148.45,148.42,31.35990728]
[1745668721647,6.7337,148.45,148.42,38.09460728]
[1745668722048,5.27990728,148.5,148.44,5.27990728]
[1745668722238,5.27990728,148.5,148.46,5.27990728]
[1745668722642,6.7317,148.49,148.46,5.27990728]
[1745668722843,5.27990728,148.5,148.46,5.27990728]
[1745668723249,6.7321,148.48,148.46,5.27990728]
[1745668723542,5.27990728,148.49,148.44,6.7337]
[1745668723743,5.27990728,148.48,148.44,5.27990728]
[1745668724044,5.27990728,148.47,148.43,5.27990728]
[1745668724446,26.08,148.51,148.43,5.27990728]
[1745668724642,5.27990728,148.48,148.43,5.27990728]
[1745668726049,5.27990728,148.47,148.43,5.27990728]
[1745668726648,6.7332,148.46,148.43,5.27990728]
[1745668726946,26.08,148.51,148.45,5.27990728]
[1745668727152,5.27990728,148.5,148.46,5.27990728]
[1745668727452,6.7319,148.49,148.46,5.27990728]
[1745668727650,6.7319,148.49,148.45,6.7331]
[1745668727851,6.7319,148.49,148.47,5.27990728]
[1745668728554,6.7319,148.49,148.46,5.27990728]
[1745668729052,6.7319,148.49,148.47,5.27990728]
[1745668729848,26.08,148.54,148.46,5.27990728]
[1745668730051,5.27990728,148.48,148.44,5.27990728]
[1745668731050,7.37630728,148.49,148.45,5.27990728]
[1745668731349,6.7326,148.47,148.45,5.27990728]
[1745668731549,7.37630728,148.49,148.45,5.27990728]
[1745668731744,5.27990728,148.48,148.44,5.27990728]
[1745668731944,5.27990728,148.46,148.42,31.35990728]
[1745668732354,6.7337,148.45,148.42,31.35990728]
[1745668732652,6.7337,148.45,148.43,5.27990728]
[1745668733654,6.7338,148.44,148.43,5.27990728]
[1745668734653,6.7336,148.45,148.43,5.27990728]
[1745668735354,6.7338,148.44,148.43,5.27990728]
[1745668736056,6.7338,148.44,148.42,31.35990728]
[1745668736357,6.7343,148.43,148.42,26.08]
[1745668736556,5.27990728,148.44,148.39,31.35990728]
[1745668736853,5.27990728,148.43,148.39,31.35990728]
[1745668737056,6.7351,148.42,148.39,38.09570728]
[1745668737353,6.7351,148.42,148.39,31.35990728]
[1745668738557,6.7351,148.42,148.39,38.09590728]
[1745668740856,6.7351,148.42,148.4,5.27990728]
[1745668741052,5.27990728,148.41,148.36,26.08]
[1745668741359,5.27990728,148.38,148.35,26.08]
[1745668741754,6.7375,148.36,148.35,26.08]
[1745668742057,19.57990728,148.37,148.32,31.35990728]
[1745668742656,19.57990728,148.37,148.33,5.27990728]
[1745668742957,6.7376,148.36,148.33,5.27990728]
[1745668743147,6.7376,148.36,148.34,5.27990728]
[1745668743458,21.0373,148.37,148.35,5.27990728]
[1745668743658,14.3,148.37,148.36,5.27990728]
[1745668745158,14.3,148.37,148.36,26.08]
[1745668745655,21.037,148.37,148.36,26.08]
[1745668747554,14.3,148.37,148.36,26.08]
[1745668748253,14.3,148.37,148.36,31.35990728]
[1745668748558,14.3,148.37,148.36,38.09740728]
[1745668748756,14.3,148.37,148.36,31.35990728]
[1745668750458,14.3,148.37,148.36,38.09740728]
[1745668751958,14.3,148.37,148.36,5.27990728]
[1745668753561,14.3,148.37,148.36,12.01740728]
[1745668756461,3.9337,148.42,148.36,5.27990728]
[1745668756759,5.27990728,148.41,148.37,5.27990728]
[1745668756957,9.21360728,148.42,148.38,5.27990728]
[1745668757162,6.7357,148.4,148.38,5.27990728]
[1745668759261,9.21360728,148.42,148.38,5.27990728]
[1745668759462,5.27990728,148.41,148.38,5.27990728]
[1745668759761,6.7361,148.4,148.38,5.27990728]
[1745668762066,6.7351,148.42,148.39,5.27990728]
[1745668762262,6.7351,148.42,148.41,5.27990728]
[1745668762462,5.27990728,148.43,148.4,5.27990728]
[1745668762761,5.27990728,148.43,148.39,5.27990728]
[1745668763264,6.7352,148.41,148.39,5.27990728]
[1745668763466,5.27990728,148.41,148.35,26.08]
[1745668763765,5.27990728,148.41,148.37,5.27990728]
[1745668763965,6.736,148.4,148.37,5.27990728]
[1745668764266,7.27790728,148.42,148.37,5.27990728]
[1745668764465,6.7359,148.4,148.38,5.27990728]
[1745668766568,1.998,148.42,148.39,5.27990728]
[1745668766969,7.27790728,148.42,148.38,5.27990728]
[1745668767268,6.736,148.4,148.38,5.27990728]
[1745668767470,5.27990728,148.4,148.35,26.08]
[1745668767669,5.27990728,148.4,148.36,5.27990728]
[1745668767865,6.7365,148.39,148.36,12.01740728]
[1745668768062,6.7365,148.39,148.36,5.27990728]
[1745668768968,6.7365,148.39,148.37,5.27990728]
[1745668774976,6.7366,148.38,148.37,5.27990728]
[1745668775476,5.27990728,148.41,148.37,5.27990728]
[1745668775775,6.736,148.4,148.37,5.27990728]
[1745668776070,7.27790728,148.42,148.37,5.27990728]
[1745668776976,7.27790728,148.42,148.37,12.01680728]
[1745668777276,6.7361,148.4,148.37,12.01680728]
[1745668777476,7.27790728,148.42,148.37,5.27990728]
[1745668777875,6.7361,148.4,148.37,5.27990728]
[1745668778577,6.7361,148.4,148.37,12.01690728]
[1745668778775,4.158,148.48,148.39,5.27990728]
[1745668778976,5.27990728,148.46,148.41,5.27990728]
[1745668779477,6.7342,148.44,148.41,5.27990728]
[1745668779874,6.7343,148.43,148.41,5.27990728]
[1745668780179,5.27990728,148.46,148.42,5.27990728]
[1745668780377,7.28950728,148.47,148.42,5.27990728]
[1745668781180,2.0096,148.47,148.43,5.27990728]
[1745668781681,6.7334,148.46,148.44,5.27990728]
[1745668782577,2.0096,148.47,148.45,5.27990728]
[1745668782785,26.06,148.53,148.46,5.27990728]
[1745668783079,6.7311,148.5,148.49,5.27990728]
[1745668783275,33.26080728,148.53,148.49,5.27990728]
[1745668783475,33.26080728,148.53,148.48,5.27990728]
[1745668783676,6.7309,148.51,148.49,5.27990728]
[1745668783875,33.26080728,148.53,148.49,5.27990728]
[1745668784277,6.7311,148.5,148.49,5.27990728]
[1745668785380,6.7305,148.52,148.49,5.27990728]
[1745668785679,1.9209,148.53,148.49,5.27990728]
[1745668786073,6.7311,148.5,148.49,5.27990728]
[1745668786274,1.9209,148.53,148.48,5.27990728]
[1745668786275,7.20080728,148.53,148.48,5.27990728]
[1745668786580,27.67080728,148.53,148.48,5.27990728]
[1745668786779,6.7316,148.5,148.48,5.27990728]
[1745668787380,6.7316,148.49,148.48,5.27990728]
[1745668796985,6.7313,148.5,148.48,5.27990728]
[1745668797887,6.7316,148.49,148.48,5.27990728]
[1745668798589,6.7316,148.49,148.47,5.27990728]
[1745668799085,6.7312,148.5,148.48,5.27990728]
[1745668799286,22.3909,148.53,148.49,5.27990728]
[1745668799492,22.3909,148.53,148.5,5.27990728]
[1745668799985,6.7302,148.52,148.5,5.27990728]
[1745668800190,22.3909,148.53,148.5,5.27990728]
[1745668800491,6.7311,148.51,148.48,5.27990728]
[1745668800689,27.67080728,148.53,148.48,5.27990728]
[1745668801190,6.7309,148.51,148.48,12.01190728]
[1745668801689,6.7309,148.51,148.49,5.27990728]
[1745668802293,6.7311,148.5,148.49,5.27990728]
[1745668802591,5.27990728,148.51,148.47,5.27990728]
[1745668802890,6.7316,148.49,148.47,5.27990728]
[1745668803388,6.7314,148.5,148.48,5.27990728]
[1745668803582,5.27990728,148.49,148.46,26.06]
[1745668803782,5.27990728,148.5,148.46,26.06]
[1745668804285,5.27990728,148.49,148.46,26.06]
[1745668804485,5.27990728,148.48,148.43,26.06]
[1745668804690,6.7338,148.44,148.43,26.06]
[1745668805490,6.7335,148.45,148.43,26.06]
[1745668805690,6.7335,148.45,148.43,31.33990728]
[1745668806187,6.7335,148.45,148.43,26.06]
[1745668806388,6.7338,148.44,148.43,26.06]
[1745668806784,5.27990728,148.46,148.43,26.06]
[1745668807289,7.18900728,148.47,148.43,26.06]
[1745668807491,1.9091,148.47,148.44,5.27990728]
[1745668807691,26.04,148.53,148.47,6.7324]
[1745668807888,6.7315,148.5,148.48,5.27990728]
[1745668808395,6.7316,148.49,148.48,5.27990728]
[1745668808594,31.31990728,148.53,148.48,5.27990728]
[1745668809395,5.27990728,148.52,148.47,5.27990728]
[1745668809592,6.7312,148.5,148.47,5.27990728]
[1745668809796,5.27990728,148.51,148.47,5.27990728]
[1745668810092,6.7315,148.5,148.47,5.27990728]
[1745668810290,5.27990728,148.51,148.47,5.27990728]
[1745668810592,5.27990728,148.52,148.47,5.27990728]
[1745668810888,6.7312,148.5,148.47,5.27990728]
[1745668811092,5.27990728,148.51,148.47,5.27990728]
[1745668811590,5.27990728,148.48,148.42,26.04]
[1745668811786,5.27990728,148.5,148.44,5.27990728]
[1745668811994,6.7316,148.49,148.47,5.27990728]
[1745668812695,6.732,148.48,148.47,5.27990728]
[1745668812893,6.732,148.48,148.46,5.27990728]
[1745668813189,5.27990728,148.48,148.43,5.27990728]
[1745668813689,5.27990728,148.5,148.45,5.27990728]
[1745668813890,2.0798,148.52,148.48,5.27990728]
[1745668814094,2.0798,148.52,148.4,2.024]
[1745668814095,1.9395,148.53,148.5,5.27990728]
[1745668814392,6.7306,148.52,148.5,5.27990728]
[1745668816399,6.7299,148.53,148.5,12.01100728]
[1745668816598,6.7299,148.53,148.51,5.27990728]
[1745668817302,6.7302,148.52,148.49,12.01120728]
[1745668818402,6.7307,148.51,148.49,5.27990728]
[1745668820709,6.7311,148.5,148.48,5.27990728]
[1745668822408,6.7309,148.51,148.48,12.01190728]
[1745668822911,1.9885,148.54,148.5,5.27990728]
[1745668823210,11.73009272,148.5,148.48,6.7318]
[1745668823410,11.73009272,148.5,148.49,5.27990728]
[1745668823706,11.73009272,148.5,148.49,12.01150728]
[1745668823912,11.73009272,148.5,148.49,5.27990728]
[1745668824306,11.73009272,148.5,148.49,12.01150728]
[1745668824507,11.73009272,148.5,148.49,5.27990728]
[1745668826314,11.73009272,148.5,148.49,12.01150728]
[1745668826507,1.9885,148.54,148.49,5.27990728]
[1745668826709,1.9885,148.54,148.52,5.27990728]
[1745668827207,5.27990728,148.56,148.52,5.27990728]
[1745668827405,6.7292,148.55,148.52,5.27990728]
[1745668828513,6.7292,148.55,148.51,12.01050728]
[1745668830213,6.7292,148.55,148.52,5.27990728]
[1745668830411,3.8772,148.57,148.53,5.27990728]
[1745668830610,3.8772,148.57,148.5,26.04]
[1745668830815,9.15710728,148.57,148.53,5.27990728]
[1745668831016,6.7292,148.55,148.52,5.27990728]
[1745668831218,3.8772,148.57,148.53,5.27990728]
[1745668831518,3.8772,148.57,148.54,5.27990728]
[1745668831818,10.6053,148.57,148.54,5.27990728]
[1745668832013,1.9392,148.57,148.55,5.27990728]
[1745668832621,1.9392,148.57,148.55,12.00850728]
[1745668833219,1.9392,148.57,148.55,5.27990728]
[1745668834120,1.9392,148.57,148.55,12.00880728]
[1745668835018,1.9392,148.57,148.55,5.27990728]
[1745668835619,8.6672,148.57,148.55,5.27990728]
[1745668837221,5.27990728,148.6,148.55,5.27990728]
[1745668837423,5.27990728,148.6,148.56,5.27990728]
[1745668837925,6.7278,148.58,148.56,5.27990728]
[1745668838122,6.7278,148.58,148.55,5.27990728]
[1745668838824,6.7278,148.58,148.55,12.00870728]
[1745668839119,6.7272,148.59,148.56,5.27990728]
[1745668839422,5.27990728,148.61,148.56,12.00800728]
[1745668839615,5.27990728,148.61,148.57,5.27990728]
[1745668840024,6.7267,148.6,148.57,5.27990728]
[1745668840524,5.27990728,148.61,148.57,5.27990728]
[1745668841024,5.27990728,148.63,148.58,5.27990728]
[1745668841323,5.27990728,148.62,148.57,5.27990728]
[1745668841520,5.27990728,148.61,148.57,5.27990728]
[1745668841720,6.7269,148.6,148.57,5.27990728]
[1745668841921,5.27990728,148.61,148.57,5.27990728]
[1745668842120,5.27990728,148.61,148.56,6.7281]
[1745668842322,5.27990728,148.61,148.57,5.27990728]
[1745668842921,6.7267,148.6,148.57,5.27990728]
[1745668843129,5.27990728,148.61,148.57,5.27990728]
[1745668843625,5.27990728,148.61,148.56,6.7281]
[1745668843825,6.727,148.6,148.57,5.27990728]
[1745668844025,6.727,148.6,148.58,5.27990728]
[1745668844226,29.9208,148.64,148.58,5.27990728]
[1745668844427,5.27990728,148.63,148.58,5.27990728]
[1745668844726,6.7269,148.6,148.58,5.27990728]
[1745668846827,6.7262,148.61,148.58,5.27990728]
[1745668847830,6.7267,148.6,148.58,5.27990728]
[1745668848124,29.9208,148.64,148.58,5.27990728]
[1745668848323,6.7266,148.6,148.58,5.27990728]
[1745668849028,5.27990728,148.61,148.57,5.27990728]
[1745668849826,18.28,148.63,148.59,5.27990728]
[1745668850026,23.55990728,148.63,148.59,5.27990728]
[1745668850227,6.7266,148.61,148.59,5.27990728]
[1745668850427,23.55990728,148.63,148.59,5.27990728]
[1745668850830,6.7265,148.61,148.59,5.27990728]
[1745668851032,18.28,148.63,148.6,5.27990728]
[1745668851227,18.28,148.63,148.62,5.27990728]
[1745668851433,1.9818,148.64,148.62,5.27990728]
[1745668851731,6.7256,148.63,148.6,6.7263]
[1745668852729,6.7256,148.63,148.62,5.27990728]
[1745668855134,8.7067,148.64,148.62,5.27990728]
[1745668855431,8.7067,148.64,148.63,5.27990728]
[1745668855630,8.7067,148.64,148.62,5.27990728]
[1745668856632,1.9818,148.64,148.62,5.27990728]
[1745668856829,1.9818,148.64,148.63,5.27990728]
[1745668857531,8.7066,148.64,148.63,5.27990728]
[1745668857925,1.9818,148.64,148.63,5.27990728]
[1745668859034,26.4139,148.66,148.63,5.27990728]
[1745668859332,26.4139,148.66,148.64,5.27990728]
[1745668859532,26.4139,148.66,148.63,5.27990728]
[1745668859727,6.7239,148.66,148.63,5.27990728]
[1745668859931,6.7244,148.65,148.63,5.27990728]
[1745668860436,6.7248,148.64,148.63,5.27990728]
[1745668860633,5.27990728,148.67,148.63,5.27990728]
[1745668861433,6.7253,148.63,148.6,12.00630728]
[1745668861737,6.7253,148.63,148.6,5.27990728]
[1745668861936,5.27990728,148.63,148.59,5.27990728]
[1745668862137,7.24290728,148.62,148.58,31.29990728]
[1745668862335,1.963,148.62,148.59,5.27990728]
[1745668862637,8.6889,148.62,148.59,5.27990728]
[1745668864440,8.6889,148.62,148.59,12.00690728]
[1745668864635,8.6889,148.62,148.6,5.27990728]
[1745668865337,1.963,148.62,148.6,5.27990728]
[1745668865641,1.963,148.62,148.6,12.00630728]
[1745668866734,1.9699,148.63,148.61,12.00600728]
[1745668866939,6.725,148.64,148.61,12.00600728]
[1745668867642,6.725,148.64,148.62,5.27990728]
[1745668869049,6.7252,148.63,148.62,5.27990728]
[1745668869236,6.7252,148.63,148.61,5.27990728]
[1745668869745,6.7257,148.62,148.6,5.27990728]
[1745668870044,6.7257,148.62,148.59,12.00680728]
[1745668870547,5.27990728,148.64,148.59,5.27990728]
[1745668870843,6.7256,148.63,148.6,5.27990728]
[1745668871040,6.7256,148.63,148.61,5.27990728]
[1745668871947,6.7249,148.64,148.61,12.00600728]
[1745668872142,5.27990728,148.67,148.62,5.27990728]
[1745668872343,11.27650728,148.68,148.64,5.27990728]
[1745668872840,6.7243,148.65,148.64,5.27990728]
[1745668876744,5.9966,148.68,148.64,5.27990728]
[1745668876946,11.27650728,148.68,148.64,5.27990728]
[1745668877551,6.7243,148.65,148.64,5.27990728]
[1745668877751,5.27990728,148.66,148.58,26.02]
[1745668877952,5.27990728,148.65,148.61,5.27990728]
[1745668878459,6.7256,148.63,148.61,5.27990728]
[1745668879053,6.7256,148.63,148.62,5.27990728]
[1745668879256,6.725,148.64,148.62,5.27990728]
[1745668880251,6.7252,148.63,148.62,5.27990728]
[1745668881062,6.725,148.64,148.62,5.27990728]
[1745668881864,6.7245,148.65,148.63,5.27990728]
[1745668883360,5.27990728,148.67,148.63,5.27990728]
[1745668883361,6.7248,148.64,148.63,5.27990728]
[1745668883860,6.7248,148.64,148.62,5.27990728]
[1745668886461,6.7245,148.65,148.62,12.00550728]
[1745668886661,5.27990728,148.64,148.58,26.02]
[1745668886966,5.27990728,148.63,148.58,31.29990728]
[1745668887166,6.726,148.62,148.58,38.02720728]
[1745668888367,5.27990728,148.63,148.58,38.02720728]
[1745668888368,6.7262,148.61,148.58,38.02720728]
[1745668888564,6.7262,148.61,148.59,5.27990728]
[1745668888968,6.7259,148.62,148.59,5.27990728]
[1745668890465,6.7264,148.61,148.59,5.27990728]
[1745668891365,5.27990728,148.64,148.59,5.27990728]
[1745668891572,6.7259,148.62,148.59,5.27990728]
[1745668891767,5.27990728,148.63,148.59,5.27990728]
[1745668891972,11.30900728,148.63,148.59,5.27990728]
[1745668892174,6.7266,148.6,148.59,5.27990728]
[1745668893170,6.7263,148.61,148.59,5.27990728]
[1745668893374,11.30900728,148.63,148.59,5.27990728]
[1745668893676,6.7265,148.61,148.58,26.02]
[1745668893876,11.30900728,148.63,148.59,5.27990728]